bitfinex/quotes_BTCUSD_20250225
["timestamp","ask_amount","ask_price","bid_price","bid_amount"]
[1740458718524,0.01418897,92283.0,92271.0,0.0016956]
[1740458718914,0.004,92283.0,92271.0,0.0016956]
[1740458719362,0.01,92283.0,92271.0,0.0016956]
[1740458720622,0.01032,92282.0,92271.0,0.0016956]
[1740458721435,0.01,92283.0,92271.0,0.0016956]
[1740458721637,0.01699913,92285.0,92271.0,0.0016956]
[1740458721838,0.005,92282.0,92271.0,0.0016956]
[1740458722156,0.009,92282.0,92271.0,0.0016956]
[1740458722332,0.004,92282.0,92271.0,0.0016956]
[1740458723326,0.004,92282.0,92272.0,0.0762]
[1740458724262,0.006,92283.0,92272.0,0.0762]
[1740458724457,0.00992174,92282.0,92272.0,0.0762]
[1740458724815,0.01492174,92282.0,92272.0,0.0762]
[1740458725369,0.00992174,92282.0,92272.0,0.0762]
[1740458725501,0.01492174,92282.0,92272.0,0.0762]
[1740458725702,0.0062363,92281.0,92272.0,0.0762]
[1740458727812,0.0152363,92281.0,92272.0,0.0762]
[1740458728216,0.0152363,92281.0,92271.0,0.0016956]
[1740458728424,0.00054887,92280.0,92271.0,0.0016956]
[1740458728981,0.04864887,92280.0,92257.0,0.0788]
[1740458729174,0.02529413,92279.0,92257.0,0.0788]
[1740458729312,0.02529413,92279.0,92249.0,0.0825]
[1740458729510,0.01508972,92278.0,92249.0,0.0825]
[1740458729720,0.00825565,92258.0,92249.0,0.0825]
[1740458731844,0.00825565,92258.0,92239.0,0.0819]
[1740458731956,0.00054907,92257.0,92239.0,0.0819]
[1740458732796,0.01700277,92253.0,92239.0,0.0819]
[1740458732996,0.00054907,92257.0,92239.0,0.0819]
[1740458734668,0.02649952,92257.0,92239.0,0.0819]
[1740458734921,0.02849952,92257.0,92239.0,0.0819]
[1740458735087,0.02849952,92257.0,92235.0,0.0756]
[1740458735419,0.02849952,92257.0,92229.0,0.00012938]
[1740458735420,0.04195688,92256.0,92229.0,0.07572938]
[1740458735550,0.04814221,92255.0,92229.0,0.07572938]
[1740458735763,0.01454085,92253.0,92229.0,0.07572938]
[1740458735983,0.01700508,92250.0,92229.0,0.07572938]
[1740458736374,0.00054917,92249.0,92229.0,0.07572938]
[1740458737554,0.01700508,92250.0,92229.0,0.07572938]
[1740458738280,0.01632,92249.0,92229.0,0.07572938]
[1740458738487,0.006,92249.0,92229.0,0.07572938]
[1740458738892,0.02717508,92250.0,92229.0,0.07572938]
[1740458739022,0.00054917,92248.0,92229.0,0.07572938]
[1740458740191,0.00663603,92247.0,92229.0,0.07572938]
[1740458740533,0.00663603,92247.0,92234.0,0.02]
[1740458740743,0.00820806,92242.0,92237.0,0.02]
[1740458741343,0.00820806,92242.0,92229.0,0.07572938]
[1740458741344,0.00820806,92242.0,92229.0,0.09572938]
[1740458741970,0.01700504,92239.0,92229.0,0.09572938]
[1740458742371,0.01700504,92239.0,92238.0,0.0806]
[1740458742604,0.00835552,92256.0,92240.0,0.02]
[1740458742822,0.002,92242.0,92240.0,0.02]
[1740458743023,0.003,92242.0,92240.0,0.02]
[1740458743234,0.002,92242.0,92239.0,0.0476]
[1740458743438,0.002,92242.0,92238.0,0.0806]
[1740458744129,0.00815855,92246.0,92238.0,0.0806]
[1740458745701,0.00915855,92246.0,92238.0,0.0806]
[1740458747165,0.01700451,92245.0,92238.0,0.0806]
[1740458749559,0.01700451,92245.0,92231.0,0.02]
[1740458750745,0.02000451,92245.0,92231.0,0.02]
[1740458751266,0.01700451,92245.0,92231.0,0.02]
[1740458751458,0.02200451,92245.0,92231.0,0.02]
[1740458752018,0.02000451,92245.0,92237.0,0.02]
[1740458752438,0.02300451,92245.0,92237.0,0.02]
[1740458753029,0.02000451,92245.0,92237.0,0.02]
[1740458753298,0.02000451,92245.0,92240.0,0.02]
[1740458753530,0.02400451,92245.0,92244.0,0.02]
[1740458753731,0.007,92245.0,92244.0,0.02]
[1740458753919,0.0016996,92260.0,92244.0,0.02]
[1740458754119,0.004,92245.0,92244.0,0.02]
[1740458754521,0.007,92245.0,92244.0,0.02]
[1740458754732,0.0016996,92260.0,92244.0,0.02]
[1740458754880,0.004,92245.0,92244.0,0.02]
[1740458755518,0.006,92245.0,92240.0,0.0971]
[1740458755855,0.004,92245.0,92240.0,0.0971]
[1740458756053,0.0016998,92250.0,92240.0,0.0971]
[1740458756413,0.0016998,92250.0,92245.0,0.017]
[1740458756661,0.01700389,92248.0,92245.0,0.017]
[1740458757653,0.01700389,92248.0,92247.0,0.017]
[1740458757859,0.01700389,92248.0,92247.0,0.1469]
[1740458758197,0.002,92248.0,92247.0,0.1469]
[1740458758401,0.003,92248.0,92247.0,0.1469]
[1740458758734,0.002,92248.0,92247.0,0.1469]
[1740458758934,0.003,92248.0,92247.0,0.1469]
[1740458759147,0.001,92248.0,92247.0,0.1469]
[1740458759567,0.002,92248.0,92247.0,0.1469]
[1740458759772,0.002,92248.0,92247.0,0.0802]
[1740458759950,0.001,92248.0,92247.0,0.0972]
[1740458760406,0.001,92248.0,92247.0,0.1032]
[1740458760602,0.002,92248.0,92247.0,0.0862]
[1740458760802,0.001,92248.0,92247.0,0.0802]
[1740458761033,0.0016998,92250.0,92243.0,0.076]
[1740458761182,0.0016998,92250.0,92247.0,0.003]
[1740458761552,0.0016998,92250.0,92247.0,0.02]
[1740458761758,0.0016998,92250.0,92249.0,0.017]
[1740458762574,0.01870298,92250.0,92249.0,0.017]
[1740458762785,0.0016998,92250.0,92249.0,0.017]
[1740458763418,0.0016998,92250.0,92249.0,0.019]
[1740458764261,0.0016998,92250.0,92249.0,0.017]
[1740458764450,0.02186589,92278.0,92249.0,0.017]
[1740458764672,0.03374506,92277.0,92249.0,0.017]
[1740458764895,0.032628,92268.0,92249.0,0.017]
[1740458765028,0.15,92277.0,92251.0,0.017]
[1740458765229,0.0627605,92276.0,92246.0,0.017]
[1740458765435,0.03374592,92275.0,92246.0,0.017]
[1740458765681,0.03374592,92275.0,92249.0,0.002]
[1740458766031,0.01700297,92268.0,92243.0,0.076]
[1740458766275,0.00834327,92256.0,92245.0,0.017]
[1740458766689,0.00834327,92256.0,92243.0,0.076]
[1740458767269,0.01700347,92253.0,92244.0,0.017]
[1740458767470,0.01700347,92253.0,92243.0,0.06223]
[1740458767649,0.01700347,92253.0,92245.0,0.0008499]
[1740458767900,0.0523,92252.0,92245.0,0.0008499]
[1740458768129,0.00793465,92251.0,92241.0,0.26522686]
[1740458768335,0.03374547,92250.0,92241.0,0.26522686]
[1740458768534,0.0446,92249.0,92241.0,0.26522686]
[1740458768754,0.03374547,92248.0,92227.0,0.001697]
[1740458770202,0.01454085,92245.0,92227.0,0.001697]
[1740458770437,0.16454085,92238.0,92227.0,0.001697]
[1740458771385,0.01700781,92237.0,92227.0,0.001697]
[1740458771723,0.00801219,92232.0,92227.0,0.001697]
[1740458774110,0.01101219,92232.0,92227.0,0.001697]
[1740458774554,0.01401219,92232.0,92227.0,0.001697]
[1740458776236,0.01101219,92232.0,92227.0,0.001697]
[1740458776437,0.03102008,92232.0,92227.0,0.001697]
[1740458776651,0.02802008,92232.0,92227.0,0.001697]
[1740458777048,0.03002008,92232.0,92227.0,0.001697]
[1740458777474,0.02879012,92232.0,92227.0,0.001697]
[1740458778268,0.02579012,92232.0,92227.0,0.001697]
[1740458778427,0.02379012,92232.0,92227.0,0.001697]
[1740458778632,0.03114212,92232.0,92227.0,0.001697]
[1740458779053,0.02914212,92232.0,92227.0,0.001697]
[1740458779432,0.03014212,92232.0,92227.0,0.001697]
[1740458779649,0.01313423,92232.0,92227.0,0.001697]
[1740458780485,0.01213423,92232.0,92227.0,0.001697]
[1740458780687,0.01313423,92232.0,92227.0,0.001697]
[1740458781400,0.01313423,92232.0,92227.0,0.00212843]
[1740458781602,0.01213423,92232.0,92227.0,0.00212843]
[1740458781811,0.01513423,92232.0,92221.0,0.001697]
[1740458782323,0.01413423,92232.0,92221.0,0.001697]
[1740458782713,0.01613423,92232.0,92221.0,0.001697]
[1740458783021,0.01313423,92232.0,92221.0,0.001697]
[1740458783227,0.01113423,92232.0,92221.0,0.001697]
[1740458783424,0.01713423,92232.0,92221.0,0.001697]
[1740458783628,0.01413423,92232.0,92221.0,0.001697]
[1740458784041,0.01713423,92232.0,92221.0,0.001697]
[1740458784241,0.0170093,92230.0,92221.0,0.001697]
[1740458786107,0.0170093,92230.0,92222.0,0.0809]
[1740458786506,0.0190093,92230.0,92222.0,0.0809]
[1740458786670,0.0210093,92230.0,92222.0,0.0809]
[1740458786885,0.0190093,92230.0,92222.0,0.0809]
[1740458787259,0.0170093,92230.0,92222.0,0.0809]
[1740458787466,0.0180093,92230.0,92222.0,0.0809]
[1740458788678,0.0170093,92230.0,92222.0,0.0809]
[1740458790103,0.0170093,92230.0,92221.0,0.001697]
[1740458791985,0.0170093,92230.0,92222.0,0.0008501]
[1740458792565,0.0180093,92230.0,92222.0,0.0008501]
[1740458792953,0.0170093,92230.0,92222.0,0.0008501]
[1740458793155,0.0190093,92230.0,92222.0,0.0008501]
[1740458793554,0.0210093,92230.0,92222.0,0.0008501]
[1740458793971,0.0190093,92230.0,92222.0,0.0008501]
[1740458794127,0.0210093,92230.0,92222.0,0.0008501]
[1740458795075,0.0190093,92230.0,92222.0,0.0008501]
[1740458795319,0.0200093,92230.0,92222.0,0.0008501]
[1740458795626,0.0180093,92230.0,92222.0,0.0008501]
[1740458796152,0.0190093,92230.0,92222.0,0.0008501]
[1740458797362,0.0180093,92230.0,92222.0,0.0008501]
[1740458797625,0.03371501,92229.0,92222.0,0.0008501]
[1740458797817,0.00655587,92228.0,92222.0,0.0008501]
[1740458798318,0.0190093,92230.0,92222.0,0.0008501]
[1740458798535,0.03372056,92229.0,92222.0,0.0008501]
[1740458799110,0.03372056,92229.0,92201.0,0.032]
[1740458799111,0.002,92228.0,92201.0,0.032]
[1740458799314,0.03372056,92227.0,92202.0,0.00012948]
[1740458799709,0.03572056,92229.0,92202.0,0.00012948]
[1740458799911,0.23508537,92228.0,92202.0,0.00012948]
[1740458800227,0.18372056,92227.0,92202.0,0.00012948]
[1740458800450,0.03372056,92226.0,92202.0,0.00012948]
[1740458801952,0.01454085,92226.0,92202.0,0.00012948]
[1740458802206,0.03372056,92225.0,92202.0,0.00012948]
[1740458802523,0.03089262,92224.0,92202.0,0.00012948]
[1740458802725,0.03372056,92223.0,92202.0,0.00012948]
[1740458803029,0.00822696,92203.0,92202.0,0.00012948]
[1740458804768,0.02523936,92203.0,92202.0,0.00097958]
[1740458806082,0.05653423,92203.0,92202.0,0.00097958]
[1740458806283,0.06218765,92203.0,92202.0,0.00097958]
[1740458810063,0.05653423,92203.0,92202.0,0.00097958]
[1740458810257,0.05653423,92203.0,92202.0,0.08067958]
[1740458811286,0.04830727,92203.0,92202.0,0.09767958]
[1740458814974,0.04830727,92203.0,92202.0,0.14697958]
[1740458815197,0.03129487,92203.0,92202.0,0.14697958]
[1740458815518,0.0017002,92230.0,92209.0,0.0825]
[1740458815733,0.032644,92222.0,92209.0,0.0825]
[1740458815938,0.0337423,92221.0,92209.0,0.0825]
[1740458816272,0.03971644,92221.0,92212.0,0.017]
[1740458816606,0.03126186,92229.0,92224.0,0.0825]
[1740458816855,0.06813052,92228.0,92224.0,0.0825]
[1740458817067,0.18438805,92228.0,92224.0,0.0825]
[1740458817478,0.00814341,92225.0,92224.0,0.0775]
[1740458818102,0.004,92228.0,92227.0,0.017]
[1740458818732,0.02100749,92228.0,92227.0,0.017]
[1740458819145,0.01700749,92228.0,92227.0,0.017]
[1740458819350,0.03998517,92229.0,92227.0,0.017]
[1740458819563,0.03998517,92229.0,92228.0,0.017]
[1740458819770,0.0017002,92230.0,92223.0,0.0477]
[1740458819771,0.0017002,92230.0,92224.0,0.26522686]
[1740458819972,0.0017002,92230.0,92229.0,0.017]
[1740458820178,0.04103331,92230.0,92227.0,0.001]
[1740458820388,0.002,92225.0,92224.0,0.26522686]
[1740458820840,0.0017002,92230.0,92224.0,0.26522686]
[1740458821055,0.04114396,92230.0,92224.0,0.26522686]
[1740458821260,0.03374058,92229.0,92224.0,0.26522686]
[1740458821436,0.03374058,92229.0,92208.0,0.017]
[1740458821572,0.02844854,92228.0,92210.0,0.017]
[1740458821776,0.03374058,92227.0,92206.0,0.0793]
[1740458821986,0.03374058,92227.0,92202.0,0.00097958]
[1740458822184,0.01454085,92226.0,92202.0,0.00097958]
[1740458822430,0.00819448,92207.0,92202.0,0.00097958]
[1740458823522,0.00819448,92207.0,92202.0,0.00197958]
[1740458823724,0.01454085,92223.0,92202.0,0.00097958]
[1740458823926,0.01701232,92206.0,92202.0,0.00097958]
[1740458824132,0.03375178,92224.0,92202.0,0.00097958]
[1740458824325,0.04828217,92223.0,92202.0,0.00097958]
[1740458824548,0.01701234,92206.0,92202.0,0.00097958]
[1740458824733,0.03375178,92224.0,92205.0,0.0491]
[1740458824929,0.02377747,92223.0,92210.0,0.017]
[1740458825147,0.00821896,92215.0,92214.0,0.017]
[1740458826071,0.01701109,92220.0,92218.0,0.017]
[1740458826740,0.00801663,92219.0,92218.0,0.017]
[1740458827191,0.01701109,92220.0,92218.0,0.017]
[1740458827421,0.01701109,92220.0,92218.0,0.015]
[1740458827616,0.02800158,92219.0,92211.0,0.015]
[1740458827830,0.02800158,92219.0,92212.0,0.015]
[1740458828259,0.02800158,92219.0,92206.0,0.091]
[1740458828489,0.02534508,92220.0,92206.0,0.091]
[1740458828705,0.02534508,92220.0,92218.0,0.0008501]
[1740458828889,0.001,92219.0,92218.0,0.0008501]
[1740458829063,0.02534508,92220.0,92218.0,0.0008501]
[1740458829474,0.003,92219.0,92218.0,0.0008501]
[1740458829681,0.01033399,92220.0,92218.0,0.0008501]
[1740458830030,0.001,92219.0,92218.0,0.0008501]
[1740458830607,0.007,92219.0,92218.0,0.0008501]
[1740458831092,0.004,92219.0,92218.0,0.0008501]
[1740458831516,0.006,92219.0,92218.0,0.0008501]
[1740458831864,0.002,92219.0,92218.0,0.0008501]
[1740458832066,0.003,92219.0,92218.0,0.0008501]
[1740458832879,0.036814,92219.0,92218.0,0.0008501]
[1740458833044,0.003,92219.0,92218.0,0.0008501]
[1740458833239,0.004,92219.0,92218.0,0.0008501]
[1740458833486,0.001,92219.0,92218.0,0.0008501]
[1740458833690,0.03681961,92219.0,92218.0,0.0008501]
[1740458833887,0.03881961,92219.0,92218.0,0.0008501]
[1740458834411,0.05583057,92219.0,92218.0,0.0008501]
[1740458834593,0.06024703,92219.0,92218.0,0.0008501]
[1740458835119,0.05724703,92219.0,92218.0,0.0008501]
[1740458835261,0.05824703,92219.0,92218.0,0.0008501]
[1740458835908,0.06324703,92219.0,92218.0,0.0008501]
[1740458836320,0.05724703,92219.0,92218.0,0.0008501]
[1740458836492,0.06024703,92219.0,92218.0,0.0008501]
[1740458836889,0.05924703,92219.0,92218.0,0.0008501]
[1740458837641,0.05083057,92219.0,92218.0,0.0008501]
[1740458838909,0.05483057,92219.0,92218.0,0.0008501]
[1740458839487,0.05683057,92219.0,92218.0,0.0008501]
[1740458839684,0.05383057,92219.0,92218.0,0.0008501]
[1740458840016,0.05183057,92219.0,92218.0,0.0008501]
[1740458840203,0.05984703,92219.0,92218.0,0.0008501]
[1740458840657,0.05183057,92219.0,92218.0,0.0772501]
[1740458840886,0.03746226,92219.0,92218.0,0.0772501]
[1740458841068,0.01801096,92219.0,92218.0,0.0772501]
[1740458841289,0.01870856,92219.0,92218.0,0.0772501]
[1740458841611,0.02070856,92219.0,92218.0,0.0772501]
[1740458841807,0.01870856,92219.0,92218.0,0.0772501]
[1740458842012,0.02170856,92219.0,92218.0,0.0008501]
[1740458842259,0.02909693,92219.0,92218.0,0.0008501]
[1740458842429,0.06293812,92219.0,92218.0,0.0008501]
[1740458842631,0.067319,92219.0,92218.0,0.0008501]
[1740458842834,0.068319,92219.0,92218.0,0.0008501]
[1740458843040,0.05354975,92219.0,92218.0,0.0008501]
[1740458843355,0.05554975,92219.0,92218.0,0.0008501]
[1740458843790,0.05354975,92219.0,92218.0,0.0008501]
[1740458844480,0.05893063,92219.0,92218.0,0.0008501]
[1740458844678,0.05693063,92219.0,92218.0,0.0008501]
[1740458845028,0.06445709,92219.0,92218.0,0.0008501]
[1740458845231,0.06645709,92219.0,92218.0,0.0008501]
[1740458845431,0.06545709,92219.0,92218.0,0.0008501]
[1740458845635,0.06445709,92219.0,92218.0,0.0008501]
[1740458845815,0.06645709,92219.0,92218.0,0.0008501]
[1740458846108,0.06545709,92219.0,92218.0,0.0008501]
[1740458846330,0.06445709,92219.0,92218.0,0.0008501]
[1740458846678,0.06645709,92219.0,92218.0,0.0008501]
[1740458847513,0.05993063,92219.0,92218.0,0.0008501]
[1740458847854,0.05893063,92219.0,92218.0,0.0008501]
[1740458848056,0.01454085,92236.0,92218.0,0.0008501]
[1740458848262,0.001,92219.0,92218.0,0.0008501]
[1740458848539,0.01454085,92236.0,92218.0,0.0008501]
[1740458848742,0.01454085,92234.0,92218.0,0.0008501]
[1740458848946,0.001,92219.0,92218.0,0.0008501]
[1740458849145,0.01454085,92234.0,92218.0,0.0008501]
[1740458849351,0.03387776,92233.0,92218.0,0.0008501]
[1740458849554,0.001,92219.0,92218.0,0.0008501]
[1740458849767,0.01454085,92234.0,92218.0,0.0008501]
[1740458849973,0.04131898,92233.0,92218.0,0.0008501]
[1740458850197,0.002,92219.0,92218.0,0.0008501]
[1740458851184,0.001,92219.0,92218.0,0.0008501]
[1740458851391,0.00743334,92233.0,92218.0,0.0008501]
[1740458851600,0.002,92219.0,92218.0,0.0008501]
[1740458851821,0.003,92219.0,92218.0,0.0008501]
[1740458852040,0.001,92219.0,92218.0,0.0008501]
[1740458852351,0.002,92219.0,92218.0,0.0008501]
[1740458852557,0.01113913,92219.0,92218.0,0.0008501]
[1740458852740,0.01013913,92219.0,92218.0,0.0008501]
[1740458852914,0.00913913,92219.0,92218.0,0.0008501]
[1740458853523,0.01113913,92219.0,92218.0,0.0008501]
[1740458854382,0.01013913,92219.0,92218.0,0.0008501]
[1740458854583,0.01113913,92219.0,92218.0,0.0008501]
[1740458855203,0.01213913,92219.0,92218.0,0.0008501]
[1740458855404,0.00813913,92219.0,92218.0,0.0008501]
[1740458855777,0.02715005,92219.0,92218.0,0.0008501]
[1740458856220,0.02615005,92219.0,92218.0,0.0008501]
[1740458856577,0.02815005,92219.0,92218.0,0.0008501]
[1740458857413,0.02715005,92219.0,92218.0,0.0008501]
[1740458857614,0.06107804,92219.0,92218.0,0.0008501]
[1740458857821,0.06618584,92219.0,92218.0,0.0008501]
[1740458858341,0.06718584,92219.0,92218.0,0.0008501]
[1740458858572,0.06618584,92219.0,92218.0,0.0008501]
[1740458858723,0.06518584,92219.0,92218.0,0.0008501]
[1740458859305,0.06618584,92219.0,92218.0,0.0008501]
[1740458859513,0.06718584,92219.0,92218.0,0.0008501]
[1740458860543,0.06618584,92219.0,92218.0,0.0008501]
[1740458860962,0.06718584,92219.0,92218.0,0.0008501]
[1740458862859,0.06107804,92219.0,92218.0,0.0008501]
[1740458864569,0.04406712,92219.0,92218.0,0.0008501]
[1740458867558,0.06107824,92219.0,92218.0,0.0008501]
[1740458868369,0.06107824,92219.0,92218.0,0.0790501]
[1740458868504,0.06107824,92219.0,92218.0,0.1247501]
[1740458868928,0.04917494,92219.0,92218.0,0.1247501]
[1740458869131,0.04306712,92219.0,92218.0,0.1247501]
[1740458869336,0.04406712,92219.0,92218.0,0.1247501]
[1740458869935,0.04306712,92219.0,92218.0,0.1247501]
[1740458870141,0.04406712,92219.0,92218.0,0.1247501]
[1740458870575,0.04206712,92219.0,92218.0,0.1247501]
[1740458870827,0.04406712,92219.0,92218.0,0.1247501]
[1740458875320,0.03592799,92219.0,92218.0,0.1397501]
[1740458875673,0.002,92219.0,92218.0,0.1397501]
[1740458876305,0.01900862,92219.0,92218.0,0.1397501]
[1740458877105,0.01700862,92219.0,92218.0,0.1397501]
[1740458877302,0.01800862,92219.0,92218.0,0.1397501]
[1740458877478,0.01900862,92219.0,92218.0,0.1397501]
[1740458877884,0.01800862,92219.0,92218.0,0.1397501]
[1740458878283,0.01900862,92219.0,92218.0,0.1397501]
[1740458880169,0.01800862,92219.0,92218.0,0.1397501]
[1740458880449,0.01900862,92219.0,92218.0,0.1597501]
[1740458881237,0.01800862,92219.0,92218.0,0.1597501]
[1740458881656,0.01900862,92219.0,92218.0,0.1397501]
[1740458881912,0.01900862,92219.0,92218.0,0.0457]
[1740458882051,0.01800862,92219.0,92216.0,0.015]
[1740458882228,0.01700862,92219.0,92216.0,0.015]
[1740458882426,0.01800862,92219.0,92218.0,0.002]
[1740458882903,0.01700862,92219.0,92218.0,0.002]
[1740458883482,0.01700862,92219.0,92216.0,0.01144334]
[1740458883900,0.01800862,92219.0,92216.0,0.01144334]
[1740458884073,0.01900862,92219.0,92216.0,0.01144334]
[1740458884523,0.01800862,92219.0,92216.0,0.01144334]
[1740458885027,0.01900862,92219.0,92216.0,0.01144334]
[1740458885219,0.01800862,92219.0,92216.0,0.01144334]
[1740458885582,0.01900862,92219.0,92216.0,0.01144334]
[1740458885782,0.01800862,92219.0,92216.0,0.01144334]
[1740458885987,0.01800862,92219.0,92211.0,0.03144334]
[1740458886183,0.01900862,92219.0,92212.0,0.02]
[1740458886396,0.01800862,92219.0,92212.0,0.02]
[1740458886596,0.01700862,92219.0,92216.0,0.01144334]
[1740458887005,0.01800862,92219.0,92216.0,0.01144334]
[1740458887716,0.01700862,92219.0,92216.0,0.01144334]
[1740458888069,0.01800862,92219.0,92216.0,0.01144334]
[1740458888460,0.01700862,92219.0,92216.0,0.01144334]
[1740458888688,0.01900862,92219.0,92216.0,0.01144334]
[1740458888883,0.01900862,92219.0,92216.0,0.01229214]
[1740458889287,0.02070622,92219.0,92216.0,0.01229214]
[1740458889831,0.02070622,92219.0,92218.0,0.01144334]
[1740458889832,0.0046976,92219.0,92218.0,0.01144334]
[1740458890039,0.0046976,92219.0,92218.0,0.13814334]
[1740458890243,0.0046976,92219.0,92218.0,0.15814334]
[1740458890648,0.0026976,92219.0,92218.0,0.15966118]
[1740458890852,0.0046976,92219.0,92218.0,0.15966118]
[1740458891100,0.0036976,92219.0,92218.0,0.15814334]
[1740458891334,0.0016976,92219.0,92218.0,0.15966117]
[1740458892173,0.0016976,92219.0,92218.0,0.15814334]
[1740458892382,0.0016976,92219.0,92218.0,0.16166116]
[1740458893257,0.0016976,92219.0,92218.0,0.16014334]
[1740458893470,0.0016976,92219.0,92218.0,0.16166115]
[1740458893720,0.0016976,92219.0,92218.0,0.39215693]
[1740458893936,0.0016976,92234.0,92233.0,0.15824334]
[1740458894148,0.0016976,92234.0,92233.0,0.39225667]
[1740458894363,0.0016976,92234.0,92233.0,0.39073912]
[1740458894778,0.0016976,92234.0,92233.0,0.35376779]
[1740458894992,0.0016976,92234.0,92233.0,0.31766937]
[1740458895199,0.00179083,92234.0,92233.0,0.30312852]
[1740458895612,0.00179083,92234.0,92233.0,0.26540734]
[1740458896458,0.00179083,92234.0,92233.0,0.26740734]
[1740458896664,0.00179083,92234.0,92233.0,0.53323719]
[1740458896862,0.00179083,92234.0,92233.0,0.53623719]
[1740458897302,0.00279083,92234.0,92233.0,0.54223719]
[1740458897847,0.00279083,92234.0,92233.0,0.59053719]
[1740458899813,0.00179083,92234.0,92233.0,0.58453719]
[1740458900029,0.00279083,92234.0,92233.0,0.58353719]
[1740458900477,0.00379083,92234.0,92233.0,0.59053719]
[1740458900674,0.00279083,92234.0,92233.0,0.58653719]
[1740458900856,0.00379083,92234.0,92233.0,0.59053719]
[1740458902386,0.00379083,92234.0,92233.0,0.59138579]
[1740458902600,0.00379083,92234.0,92233.0,0.57684494]
[1740458903117,0.00379083,92234.0,92233.0,0.59138579]
[1740458906323,0.00435,92281.0,92234.0,0.01454085]
[1740458906534,0.00435,92281.0,92233.0,0.51017423]
[1740458906535,0.00043164,92276.0,92242.0,0.01454085]
[1740458906791,0.00043164,92276.0,92245.0,0.0825]
[1740458907006,0.00043164,92276.0,92247.0,0.0822]
[1740458907203,0.00043164,92276.0,92248.0,0.00151729]
[1740458909049,0.00543164,92276.0,92250.0,0.0806]
[1740458909203,0.00543164,92276.0,92251.0,0.00151723]
[1740458909405,0.01243164,92276.0,92251.0,0.00151723]
[1740458909608,0.02562779,92276.0,92251.0,0.00151723]
[1740458909804,0.01862779,92276.0,92251.0,0.00151723]
[1740458910032,0.01700225,92270.0,92251.0,0.00151723]
[1740458911387,0.01700225,92270.0,92252.0,0.23249578]
[1740458911593,0.01700225,92270.0,92253.0,0.00151723]
[1740458911831,0.01700225,92270.0,92253.0,0.23401301]
[1740458912101,0.02000225,92270.0,92254.0,0.0758]
[1740458912297,0.02500225,92270.0,92254.0,0.0758]
[1740458912552,0.02200225,92270.0,92255.0,0.00151719]
[1740458912777,0.00043164,92276.0,92254.0,0.0758]
[1740458912982,0.003,92270.0,92254.0,0.0758]
[1740458913098,0.003,92270.0,92255.0,0.00151723]
[1740458913314,0.006,92270.0,92255.0,0.00151723]
[1740458913513,0.011,92270.0,92254.0,0.0758]
[1740458913812,0.005,92270.0,92255.0,0.00151723]
[1740458914238,0.005,92270.0,92254.0,0.0758]
[1740458914438,0.0058486,92270.0,92254.0,0.0758]
[1740458915422,0.0008486,92270.0,92253.0,0.23249578]
[1740458915847,0.01700252,92267.0,92253.0,0.23249578]
[1740458916880,0.02895458,92269.0,92253.0,0.23249578]
[1740458917052,0.0048486,92270.0,92253.0,0.23249578]
[1740458917267,0.005,92267.0,92253.0,0.23349578]
[1740458917469,0.005,92267.0,92253.0,0.001]
[1740458918182,4.012e-05,92251.0,92242.0,0.00151757]
[1740458918750,4.012e-05,92251.0,92241.0,0.0777]
[1740458918982,4.012e-05,92251.0,92241.0,0.07921749]
[1740458919390,4.012e-05,92251.0,92242.0,0.004]
[1740458919597,4.012e-05,92251.0,92243.0,0.00151749]
[1740458921956,4.012e-05,92251.0,92244.0,0.00151749]
[1740458923001,4.012e-05,92251.0,92244.0,0.00551749]
[1740458923204,4.012e-05,92251.0,92244.0,0.00751749]
[1740458924844,4.012e-05,92251.0,92245.0,0.0761]
[1740458925065,4.012e-05,92251.0,92247.0,0.0761]
[1740458925359,4.012e-05,92251.0,92249.0,0.0808]
[1740458925543,4.012e-05,92251.0,92250.0,0.08231725]
[1740458928376,4.012e-05,92251.0,92250.0,0.08631725]
[1740458928755,4.012e-05,92251.0,92250.0,0.09031725]
[1740458929361,4.012e-05,92251.0,92250.0,0.32281303]
[1740458929563,4.012e-05,92251.0,92250.0,0.32129578]
[1740458938010,0.01700289,92257.0,92250.0,0.32129578]
[1740458938209,0.01700289,92257.0,92251.0,0.00151728]
[1740458938771,0.0008484,92253.0,92251.0,0.00151728]
[1740458939180,0.0008484,92253.0,92250.0,0.31529578]
[1740458939390,0.0008484,92253.0,92251.0,0.002]
[1740458939890,0.0008484,92253.0,92251.0,0.005]
[1740458940937,0.0008484,92253.0,92251.0,0.00651739]
[1740458941552,0.0008484,92253.0,92251.0,0.00451739]
[1740458941791,0.0008484,92253.0,92251.0,0.006]
[1740458942819,0.0338605,92252.0,92251.0,0.006]
[1740458943441,0.0008484,92253.0,92251.0,0.006]
[1740458943613,0.0067971,92252.0,92251.0,0.006]
[1740458944541,0.0067971,92252.0,92251.0,0.003]
[1740458944947,0.0067971,92252.0,92251.0,0.006]
[1740458945349,0.0067971,92252.0,92251.0,0.003]
[1740458945577,0.0067971,92252.0,92251.0,0.007]
[1740458950708,0.0067971,92252.0,92251.0,0.0086968]
[1740458952581,0.0067971,92252.0,92251.0,0.13441424]
[1740458952744,0.0067971,92252.0,92251.0,0.13441412]
[1740458952942,0.0067971,92252.0,92251.0,0.1328968]
[1740458953189,0.0067971,92252.0,92251.0,0.13441422]
[1740458953761,0.15,92283.0,92251.0,0.13441422]
[1740458954106,0.017003,92274.0,92251.0,0.36691]
[1740458954286,0.03391427,92273.0,92251.0,0.36539258]
[1740458954621,0.03391427,92273.0,92251.0,0.36239258]
[1740458954783,0.00815324,92269.0,92251.0,0.35839258]
[1740458955103,0.00815324,92269.0,92251.0,0.35939258]
[1740458955307,0.00815324,92269.0,92251.0,0.35839258]
[1740458955535,0.00815324,92269.0,92252.0,0.00151727]
[1740458955852,0.01115324,92269.0,92252.0,0.00151727]
[1740458956059,0.01315324,92269.0,92252.0,0.00151727]
[1740458956463,0.01015324,92269.0,92252.0,0.00151727]
[1740458956702,0.01315324,92269.0,92252.0,0.00151727]
[1740458956965,0.01700278,92265.0,92252.0,0.00151727]
[1740458958233,0.01800278,92265.0,92252.0,0.00151727]
[1740458959603,0.01900278,92265.0,92253.0,0.0759]
[1740458959805,0.01900278,92265.0,92254.0,0.00151728]
[1740458960551,0.01800278,92265.0,92254.0,0.00151728]
[1740458960780,0.01900278,92265.0,92254.0,0.00151728]
[1740458961180,0.01700278,92265.0,92254.0,0.00151728]
[1740458961311,0.01800278,92265.0,92254.0,0.00151728]
[1740458961510,0.01900278,92265.0,92254.0,0.00151728]